[Event "*** Titled Tuesday 3|2 Blitz"]
[Site "Chess.com"]
[Date "2016.05.03"]
[Round "1"]
[White "jcibarra"]
[Black "Penguininja"]
[Result "1-0"]
[WhiteElo "2560"]
[BlackElo "2206"]
[TimeControl "180+2"]
[EndTime "17:01:02 PDT"]
[Termination "jcibarra won by resignation"]

1. e4 {[%clk 0:03:01]} 1... e5 {[%clk 0:03:00.7]} 2. Nf3 {[%clk 0:03:01.9]} 2...
Nc6 {[%clk 0:03:02.3]} 3. Bb5 {[%clk 0:03:03.5]} 3... f5 {[%clk 0:03:03.5]} 4.
Nc3 {[%clk 0:03:02.9]} 4... fxe4 {[%clk 0:03:04.8]} 5. Nxe4 {[%clk 0:03:02.5]}
5... Nf6 {[%clk 0:03:06.5]} 6. Bxc6 {[%clk 0:03:03.6]} 6... dxc6 {[%clk
0:03:06.4]} 7. Qe2 {[%clk 0:03:05]} 7... Bg4 {[%clk 0:03:03.4]} 8. h3 {[%clk
0:03:06.2]} 8... Bxf3 {[%clk 0:03:04.4]} 9. Qxf3 {[%clk 0:03:08.1]} 9... Nxe4
{[%clk 0:03:05.8]} 10. Qxe4 {[%clk 0:03:09.4]} 10... Qd5 {[%clk 0:03:07.5]} 11.
d3 {[%clk 0:03:10.9]} 11... O-O-O {[%clk 0:03:07.2]} 12. Be3 {[%clk 0:03:06.4]}
12... Bb4+ {[%clk 0:03:05.9]} 13. Qxb4 {[%clk 0:03:04]} 1-0

[Event "*** Titled Tuesday 3|2 Blitz"]
[Site "Chess.com"]
[Date "2016.05.03"]
[Round "1"]
[White "Beca95"]
[Black "Tirantes"]
[Result "1-0"]
[WhiteElo "2548"]
[BlackElo "2194"]
[TimeControl "180+2"]
[EndTime "17:03:23 PDT"]
[Termination "Beca95 won by resignation"]

1. d4 {[%clk 0:02:58.1]} 1... Nf6 {[%clk 0:02:59.3]} 2. Bg5 {[%clk 0:02:52.7]}
2... g6 {[%clk 0:02:53]} 3. Bxf6 {[%clk 0:02:52.5]} 3... exf6 {[%clk 0:02:53.2]}
4. e3 {[%clk 0:02:54.2]} 4... d5 {[%clk 0:02:53.6]} 5. c4 {[%clk 0:02:55.2]}
5... dxc4 {[%clk 0:02:53.2]} 6. Bxc4 {[%clk 0:02:57.1]} 6... Bd6 {[%clk
0:02:52.5]} 7. Nc3 {[%clk 0:02:58.2]} 7... O-O {[%clk 0:02:52.2]} 8. Nf3 {[%clk
0:02:56.6]} 8... c5 {[%clk 0:02:52.4]} 9. O-O {[%clk 0:02:56.1]} 9... cxd4
{[%clk 0:02:52.5]} 10. Qxd4 {[%clk 0:02:56.4]} 10... Nc6 {[%clk 0:02:50.8]} 11.
Qh4 {[%clk 0:02:57.3]} 11... Ne5 {[%clk 0:02:34.6]} 12. Nxe5 {[%clk 0:02:57.1]}
12... Bxe5 {[%clk 0:02:31.6]} 13. Rad1 {[%clk 0:02:56.2]} 13... Qb6 {[%clk
0:02:13.8]} 14. Nd5 {[%clk 0:02:54.3]} 14... Qxb2 {[%clk 0:02:11]} 15. f4 {[%clk
0:02:54.2]} 15... Bc3 {[%clk 0:02:02.2]} 16. Rb1 {[%clk 0:02:51.3]} 16... Qa3
{[%clk 0:01:15.4]} 17. Rb3 {[%clk 0:02:48.1]} 1-0

[Event "*** Titled Tuesday 3|2 Blitz"]
[Site "Chess.com"]
[Date "2016.05.03"]
[Round "1"]
[White "Zurability"]
[Black "jeaston1"]
[Result "1-0"]
[WhiteElo "2417"]
[BlackElo "2000"]
[TimeControl "180+2"]
[EndTime "17:03:40 PDT"]
[Termination "Zurability won by resignation"]

1. e4 {[%clk 0:02:56.3]} 1... d5 {[%clk 0:03:01.3]} 2. exd5 {[%clk 0:02:56.5]}
2... Qxd5 {[%clk 0:03:03.2]} 3. Nf3 {[%clk 0:02:58.1]} 3... Nf6 {[%clk
0:03:03.4]} 4. Be2 {[%clk 0:02:59.2]} 4... Bf5 {[%clk 0:03:00.5]} 5. d4 {[%clk
0:02:59.6]} 5... c6 {[%clk 0:03:01.6]} 6. O-O {[%clk 0:02:59.2]} 6... e6 {[%clk
0:03:02.4]} 7. c4 {[%clk 0:03:00.6]} 7... Qd8 {[%clk 0:03:03.4]} 8. Qb3 {[%clk
0:03:01.5]} 8... Qc7 {[%clk 0:03:03.3]} 9. Bf4 {[%clk 0:02:56.4]} 9... Qc8
{[%clk 0:02:44.6]} 10. Nc3 {[%clk 0:02:57.1]} 10... Be7 {[%clk 0:02:43]} 11.
Rac1 {[%clk 0:02:54.2]} 11... O-O {[%clk 0:02:36.8]} 12. d5 {[%clk 0:02:55.4]}
12... exd5 {[%clk 0:02:37.1]} 13. cxd5 {[%clk 0:02:56.4]} 13... Rd8 {[%clk
0:02:26.9]} 14. Rfd1 {[%clk 0:02:55.5]} 14... Qd7 {[%clk 0:02:22.5]} 15. Ne5
{[%clk 0:02:43.2]} 15... Qe8 {[%clk 0:02:19.9]} 16. Qxb7 {[%clk 0:02:44.2]}
16... Nbd7 {[%clk 0:02:12.4]} 17. Nxc6 {[%clk 0:02:45]} 17... Rdc8 {[%clk
0:02:13.4]} 18. Bf3 {[%clk 0:02:40.4]} 18... Bc5 {[%clk 0:01:50.1]} 19. b4
{[%clk 0:02:35]} 19... Bb6 {[%clk 0:01:49.8]} 20. Re1 {[%clk 0:02:35.6]} 20...
Qf8 {[%clk 0:01:48.1]} 21. Ne7+ {[%clk 0:02:36.6]} 21... Kh8 {[%clk 0:01:49.1]}
22. Nxf5 {[%clk 0:02:37.7]} 22... g6 {[%clk 0:01:49.4]} 23. Bd6 {[%clk
0:02:35.7]} 23... Qg8 {[%clk 0:01:47]} 24. Ne7 {[%clk 0:02:35.2]} 24... Qg7
{[%clk 0:01:48.3]} 25. Nxc8 {[%clk 0:02:35.9]} 25... Rxc8 {[%clk 0:01:49.6]} 26.
Qxc8+ {[%clk 0:02:36.7]} 1-0

[Event "*** Titled Tuesday 3|2 Blitz"]
[Site "Chess.com"]
[Date "2016.05.03"]
[Round "1"]
[White "RamonManon0g"]
[Black "NaziPaiki"]
[Result "0-1"]
[WhiteElo "2273"]
[BlackElo "2639"]
[TimeControl "180+2"]
[EndTime "17:04:02 PDT"]
[Termination "NaziPaiki won by checkmate"]

1. d4 {[%clk 0:02:59.6]} 1... Nf6 {[%clk 0:02:58.5]} 2. Bg5 {[%clk 0:03:00.7]}
2... e6 {[%clk 0:02:58.1]} 3. e4 {[%clk 0:03:01.7]} 3... Be7 {[%clk 0:02:58.6]}
4. e5 {[%clk 0:03:03.2]} 4... Nd5 {[%clk 0:02:56.7]} 5. Bxe7 {[%clk 0:03:05.1]}
5... Nxe7 {[%clk 0:02:57.9]} 6. c4 {[%clk 0:03:07]} 6... d5 {[%clk 0:02:58.6]}
7. exd6 {[%clk 0:03:08.4]} 7... cxd6 {[%clk 0:02:59.9]} 8. Nf3 {[%clk
0:03:09.1]} 8... O-O {[%clk 0:03:01]} 9. Bd3 {[%clk 0:03:09.9]} 9... Nbc6 {[%clk
0:03:00.2]} 10. O-O {[%clk 0:03:10.6]} 10... Ng6 {[%clk 0:02:58.8]} 11. Nc3
{[%clk 0:03:11.4]} 11... f5 {[%clk 0:02:52.2]} 12. Re1 {[%clk 0:03:11.7]} 12...
Qf6 {[%clk 0:02:47.9]} 13. Nb5 {[%clk 0:03:04.3]} 13... e5 {[%clk 0:02:44.4]}
14. Nc7 {[%clk 0:02:59]} 14... Rb8 {[%clk 0:02:39.6]} 15. Nd5 {[%clk 0:03:00]}
15... Qd8 {[%clk 0:02:35.9]} 16. Bc2 {[%clk 0:02:57.4]} 16... e4 {[%clk
0:02:32]} 17. Nd2 {[%clk 0:02:49.7]} 17... Be6 {[%clk 0:02:13.3]} 18. Nf1 {[%clk
0:02:39.3]} 18... Bxd5 {[%clk 0:02:12.7]} 19. cxd5 {[%clk 0:02:41.2]} 19... Nb4
{[%clk 0:02:14.1]} 20. Bb3 {[%clk 0:02:41.9]} 20... Nd3 {[%clk 0:02:11.8]} 21.
Re2 {[%clk 0:02:43.2]} 21... Ngf4 {[%clk 0:02:08.8]} 22. Rc2 {[%clk 0:02:40.7]}
22... Qg5 {[%clk 0:02:06.6]} 23. g3 {[%clk 0:02:39.6]} 23... Nh3+ {[%clk
0:02:05.2]} 24. Kg2 {[%clk 0:02:40.9]} 24... f4 {[%clk 0:01:57.6]} 25. Kxh3
{[%clk 0:02:20.1]} 25... f3 {[%clk 0:01:57.7]} 26. g4 {[%clk 0:02:17.4]} 26...
h5 {[%clk 0:01:56.2]} 27. Ne3 {[%clk 0:02:11.4]} 27... Nf4+ {[%clk 0:01:54.8]}
28. Kg3 {[%clk 0:02:12]} 28... h4# {[%clk 0:01:55.9]} 0-1

[Event "*** Titled Tuesday 3|2 Blitz"]
[Site "Chess.com"]
[Date "2016.05.03"]
[Round "1"]
[White "MbMaster"]
[Black "Zlatan56"]
[Result "0-1"]
[WhiteElo "2213"]
[BlackElo "2577"]
[TimeControl "180+2"]
[EndTime "17:05:06 PDT"]
[Termination "Zlatan56 won by resignation"]

1. d4 {[%clk 0:02:54.9]} 1... Nf6 {[%clk 0:03:00.1]} 2. Bg5 {[%clk 0:02:52.4]}
2... e6 {[%clk 0:02:58.1]} 3. Nd2 {[%clk 0:02:51.7]} 3... h6 {[%clk 0:02:58.3]}
4. Bh4 {[%clk 0:02:49.8]} 4... c5 {[%clk 0:02:59.1]} 5. e3 {[%clk 0:02:44]} 5...
b6 {[%clk 0:02:58.8]} 6. c3 {[%clk 0:02:43.8]} 6... Bb7 {[%clk 0:02:59.6]} 7.
Ngf3 {[%clk 0:02:44.9]} 7... Be7 {[%clk 0:03:00.4]} 8. Bd3 {[%clk 0:02:44.6]}
8... O-O {[%clk 0:03:00.7]} 9. O-O {[%clk 0:02:44.6]} 9... Nc6 {[%clk
0:03:02.2]} 10. Qe2 {[%clk 0:02:38.9]} 10... cxd4 {[%clk 0:02:57.7]} 11. exd4
{[%clk 0:02:38.9]} 11... Nd5 {[%clk 0:02:58.6]} 12. Bg3 {[%clk 0:02:32.8]} 12...
f5 {[%clk 0:02:52.5]} 13. h3 {[%clk 0:02:32.1]} 13... Bf6 {[%clk 0:02:19.4]} 14.
a3 {[%clk 0:02:32.4]} 14... Nde7 {[%clk 0:02:18.1]} 15. Bd6 {[%clk 0:02:28.1]}
15... Rf7 {[%clk 0:02:18.1]} 16. Ne5 {[%clk 0:02:26.3]} 16... Bxe5 {[%clk
0:02:13.5]} 17. Bxe5 {[%clk 0:02:11.3]} 17... Nxe5 {[%clk 0:02:12.4]} 18. Qxe5
{[%clk 0:02:09.9]} 18... Ng6 {[%clk 0:02:12.3]} 19. Qe3 {[%clk 0:02:07.6]} 19...
Qg5 {[%clk 0:02:06.9]} 20. Qxg5 {[%clk 0:02:01.9]} 20... hxg5 {[%clk 0:02:08.8]}
21. Rfe1 {[%clk 0:01:59.8]} 21... Bxg2 {[%clk 0:02:03.4]} 22. Bxf5 {[%clk
0:01:48.8]} 22... Rxf5 {[%clk 0:01:58.2]} 23. Kxg2 {[%clk 0:01:49.4]} 23... Raf8
{[%clk 0:01:59.7]} 24. f3 {[%clk 0:01:47.5]} 24... Nh4+ {[%clk 0:01:58.8]} 25.
Kg3 {[%clk 0:01:41.3]} 25... Nxf3 {[%clk 0:01:59.2]} 26. Nxf3 {[%clk 0:01:42.4]}
26... Rxf3+ {[%clk 0:02:00.4]} 27. Kg4 {[%clk 0:01:41.9]} 27... Rf2 {[%clk
0:01:52.2]} 28. Rab1 {[%clk 0:01:18]} 28... Rg2+ {[%clk 0:01:51.8]} 0-1

[Event "*** Titled Tuesday 3|2 Blitz"]
[Site "Chess.com"]
[Date "2016.05.03"]
[Round "1"]
[White "Quiet_Desperation"]
[Black "chito89"]
[Result "0-1"]
[WhiteElo "2280"]
[BlackElo "2657"]
[TimeControl "180+2"]
[EndTime "17:05:14 PDT"]
[Termination "chito89 won by resignation"]

1. e4 {[%clk 0:03:00.6]} 1... g6 {[%clk 0:02:59.7]} 2. d4 {[%clk 0:03:01.5]}
2... Bg7 {[%clk 0:03:00.7]} 3. Nc3 {[%clk 0:03:03.2]} 3... d6 {[%clk 0:03:00.8]}
4. Be3 {[%clk 0:03:04.7]} 4... a6 {[%clk 0:03:01.2]} 5. Nf3 {[%clk 0:03:04.6]}
5... b5 {[%clk 0:03:01.2]} 6. h3 {[%clk 0:03:05.7]} 6... Bb7 {[%clk 0:03:01.5]}
7. Bd3 {[%clk 0:03:06.8]} 7... Nd7 {[%clk 0:03:02.5]} 8. O-O {[%clk 0:03:06.7]}
8... c5 {[%clk 0:03:03.5]} 9. dxc5 {[%clk 0:03:07.7]} 9... Nxc5 {[%clk
0:03:03.9]} 10. Rb1 {[%clk 0:03:02.1]} 10... Rc8 {[%clk 0:03:01.6]} 11. Nd5
{[%clk 0:03:02.8]} 11... Nf6 {[%clk 0:02:56.8]} 12. Bxc5 {[%clk 0:02:57.6]}
12... Rxc5 {[%clk 0:02:54.6]} 13. Nxf6+ {[%clk 0:02:40.4]} 13... Bxf6 {[%clk
0:02:55.6]} 14. c3 {[%clk 0:02:41.5]} 14... O-O {[%clk 0:02:55.9]} 15. Qe2
{[%clk 0:02:41.1]} 15... Qb6 {[%clk 0:02:47.4]} 16. Qe3 {[%clk 0:02:33.6]} 16...
b4 {[%clk 0:02:39.8]} 17. c4 {[%clk 0:02:13.4]} 17... a5 {[%clk 0:02:36]} 18. b3
{[%clk 0:02:03.3]} 18... Ra8 {[%clk 0:02:36.2]} 19. Rfe1 {[%clk 0:01:39.4]}
19... a4 {[%clk 0:02:33.8]} 20. Nd4 {[%clk 0:01:32.3]} 20... axb3 {[%clk
0:02:27.8]} 21. axb3 {[%clk 0:01:33.2]} 21... Ra2 {[%clk 0:02:24.3]} 22. Nb5
{[%clk 0:01:28.7]} 22... Rxb5 {[%clk 0:02:24.5]} 23. cxb5 {[%clk 0:01:29.7]}
23... Bd4 {[%clk 0:02:25.9]} 24. Qh6 {[%clk 0:01:21.9]} 24... Bxf2+ {[%clk
0:02:26.4]} 25. Kh1 {[%clk 0:01:23]} 25... Bxe1 {[%clk 0:02:27.2]} 26. Rxe1
{[%clk 0:01:23.8]} 26... Qf2 {[%clk 0:02:25.3]} 27. Rg1 {[%clk 0:01:22]} 27...
Qg3 {[%clk 0:02:21.9]} 28. Bc4 {[%clk 0:01:17.1]} 28... Bxe4 {[%clk 0:02:18.1]}
29. Bxf7+ {[%clk 0:01:17.1]} 29... Kxf7 {[%clk 0:02:19.3]} 30. Qxh7+ {[%clk
0:01:14.1]} 30... Ke8 {[%clk 0:02:20.4]} 0-1

[Event "*** Titled Tuesday 3|2 Blitz"]
[Site "Chess.com"]
[Date "2016.05.03"]
[Round "1"]
[White "zanbato17"]
[Black "Dr-Bassem"]
[Result "0-1"]
[WhiteElo "2204"]
[BlackElo "2566"]
[TimeControl "180+2"]
[EndTime "17:05:42 PDT"]
[Termination "Dr-Bassem won by resignation"]

1. d4 {[%clk 0:02:59.8]} 1... e6 {[%clk 0:02:59.4]} 2. c4 {[%clk 0:03:00.2]}
2... f5 {[%clk 0:02:58.9]} 3. Nc3 {[%clk 0:03:00.5]} 3... Nf6 {[%clk 0:03:00.6]}
4. Nf3 {[%clk 0:03:00]} 4... Be7 {[%clk 0:03:01.6]} 5. g3 {[%clk 0:02:59.6]}
5... O-O {[%clk 0:03:02]} 6. Bg2 {[%clk 0:03:00.5]} 6... d6 {[%clk 0:03:01.3]}
7. O-O {[%clk 0:03:01.2]} 7... Qe8 {[%clk 0:03:02.7]} 8. Qc2 {[%clk 0:03:01.6]}
8... Qg6 {[%clk 0:03:02.8]} 9. b3 {[%clk 0:03:00.7]} 9... Ne4 {[%clk 0:03:03]}
10. Bb2 {[%clk 0:03:01.2]} 10... Bf6 {[%clk 0:03:02.2]} 11. Nd2 {[%clk
0:03:00.8]} 11... Nxc3 {[%clk 0:02:50.4]} 12. Bxc3 {[%clk 0:03:01]} 12... e5
{[%clk 0:02:51.7]} 13. dxe5 {[%clk 0:03:01.1]} 13... dxe5 {[%clk 0:02:53.6]} 14.
e4 {[%clk 0:03:00.2]} 14... f4 {[%clk 0:02:53.8]} 15. Nf3 {[%clk 0:03:00.3]}
15... Nc6 {[%clk 0:02:54.4]} 16. b4 {[%clk 0:02:39]} 16... Qh5 {[%clk
0:02:44.6]} 17. b5 {[%clk 0:02:36.2]} 17... Ne7 {[%clk 0:02:45.3]} 18. Rad1
{[%clk 0:02:33.5]} 18... Bg4 {[%clk 0:02:38.7]} 19. Rd3 {[%clk 0:02:30.3]} 19...
Ng6 {[%clk 0:02:35.3]} 20. Qd2 {[%clk 0:02:18.5]} 20... Rad8 {[%clk 0:02:25.3]}
21. Rd1 {[%clk 0:01:51.1]} 21... Be7 {[%clk 0:02:25.3]} 22. Bb4 {[%clk
0:01:21.4]} 22... Rxd3 {[%clk 0:02:23.4]} 23. Qxd3 {[%clk 0:01:19.2]} 23... Bxb4
{[%clk 0:02:24.3]} 24. h3 {[%clk 0:01:18.6]} 24... Bxf3 {[%clk 0:02:18.5]} 25.
Bxf3 {[%clk 0:01:18.9]} 25... Qxh3 {[%clk 0:02:19.1]} 26. Qd5+ {[%clk
0:01:19.1]} 26... Kh8 {[%clk 0:02:19.5]} 27. Bg2 {[%clk 0:01:20.4]} 27... Qg4
{[%clk 0:02:19.4]} 28. Qd7 {[%clk 0:01:19.2]} 28... Qxd7 {[%clk 0:02:13.9]} 29.
Rxd7 {[%clk 0:01:21.1]} 29... fxg3 {[%clk 0:02:14.9]} 30. fxg3 {[%clk
0:01:21.4]} 30... Bd6 {[%clk 0:02:15.8]} 31. Kh2 {[%clk 0:01:19.9]} 31... b6
{[%clk 0:02:12.8]} 32. Bh3 {[%clk 0:01:14.5]} 32... h5 {[%clk 0:02:03.8]} 33.
Bf5 {[%clk 0:01:14.6]} 33... Ne7 {[%clk 0:02:03.1]} 34. g4 {[%clk 0:01:14.3]}
34... hxg4 {[%clk 0:02:01.7]} 35. Bxg4 {[%clk 0:01:16.2]} 35... Ng8 {[%clk
0:02:02.8]} 0-1

[Event "*** Titled Tuesday 3|2 Blitz"]
[Site "Chess.com"]
[Date "2016.05.03"]
[Round "1"]
[White "jncool68"]
[Black "Kawhi_Leonard2"]
[Result "0-1"]
[WhiteElo "2452"]
[BlackElo "2107"]
[TimeControl "180+2"]
[EndTime "17:06:13 PDT"]
[Termination "Kawhi_Leonard2 won by checkmate"]

1. e4 {[%clk 0:02:51.7]} 1... c5 {[%clk 0:03:00.1]} 2. Nf3 {[%clk 0:02:50.9]}
2... d6 {[%clk 0:03:00.9]} 3. d4 {[%clk 0:02:51.9]} 3... cxd4 {[%clk 0:03:01.7]}
4. Nxd4 {[%clk 0:02:53.8]} 4... Nf6 {[%clk 0:03:02.7]} 5. Nc3 {[%clk 0:02:55.7]}
5... g6 {[%clk 0:03:04.3]} 6. Be3 {[%clk 0:02:55.8]} 6... Bg7 {[%clk 0:03:05.8]}
7. Be2 {[%clk 0:02:56.4]} 7... O-O {[%clk 0:03:06.2]} 8. Qd2 {[%clk 0:02:57.5]}
8... Nc6 {[%clk 0:03:06.7]} 9. O-O-O {[%clk 0:02:58.2]} 9... Nxd4 {[%clk
0:02:50.1]} 10. Bxd4 {[%clk 0:02:56.1]} 10... Be6 {[%clk 0:02:51.6]} 11. g4
{[%clk 0:02:56.5]} 11... Qa5 {[%clk 0:02:51.1]} 12. g5 {[%clk 0:02:56.5]} 12...
Nd7 {[%clk 0:02:50.1]} 13. Bxg7 {[%clk 0:02:55.6]} 13... Kxg7 {[%clk 0:02:50.9]}
14. f4 {[%clk 0:02:56.3]} 14... Bxa2 {[%clk 0:02:46.9]} 15. h4 {[%clk
0:02:55.1]} 15... Be6 {[%clk 0:02:39]} 16. Qd4+ {[%clk 0:02:54.6]} 16... f6
{[%clk 0:02:29.5]} 17. h5 {[%clk 0:02:55.1]} 17... Qc5 {[%clk 0:02:19.7]} 18.
Qd3 {[%clk 0:02:50.9]} 18... fxg5 {[%clk 0:02:14.1]} 19. fxg5 {[%clk 0:02:51.3]}
19... Qxg5+ {[%clk 0:02:14.2]} 20. Kb1 {[%clk 0:02:51.7]} 20... Ne5 {[%clk
0:02:13.1]} 21. Qd4 {[%clk 0:02:47.1]} 21... Rf4 {[%clk 0:01:52.2]} 22. Rdg1
{[%clk 0:02:46.7]} 22... Qf6 {[%clk 0:01:47.8]} 23. hxg6 {[%clk 0:02:47.6]}
23... hxg6 {[%clk 0:01:48]} 24. Qe3 {[%clk 0:02:47.8]} 24... b6 {[%clk
0:01:36.9]} 25. Qg3 {[%clk 0:02:47.9]} 25... Rh8 {[%clk 0:01:34.1]} 26. Rxh8
{[%clk 0:02:47.5]} 26... Kxh8 {[%clk 0:01:34.1]} 27. Rh1+ {[%clk 0:02:49.2]}
27... Kg7 {[%clk 0:01:31.1]} 28. Qh2 {[%clk 0:02:49.9]} 28... Nf7 {[%clk
0:01:28.6]} 29. Qh7+ {[%clk 0:02:48.8]} 29... Kf8 {[%clk 0:01:29.1]} 30. Bb5
{[%clk 0:02:47.2]} 30... Qg7 {[%clk 0:01:20.5]} 31. Qh2 {[%clk 0:02:46.8]} 31...
g5 {[%clk 0:01:20.1]} 32. Qg2 {[%clk 0:02:43.9]} 32... Ne5 {[%clk 0:01:19]} 33.
Qd2 {[%clk 0:02:34.4]} 33... Qf6 {[%clk 0:01:13.9]} 34. Ne2 {[%clk 0:02:33]}
34... Rf1+ {[%clk 0:01:10.6]} 35. Rxf1 {[%clk 0:02:31.8]} 35... Qxf1+ {[%clk
0:01:10.7]} 36. Nc1 {[%clk 0:02:32.1]} 36... Qf4 {[%clk 0:01:12]} 37. Qc3 {[%clk
0:02:29.3]} 37... g4 {[%clk 0:01:07.5]} 38. Qc7 {[%clk 0:02:27.9]} 38... Qg5
{[%clk 0:00:56.2]} 39. Qd8+ {[%clk 0:02:28.2]} 39... Kg7 {[%clk 0:00:56.9]} 40.
Ne2 {[%clk 0:02:21.1]} 40... Nf7 {[%clk 0:00:48]} 41. Qc7 {[%clk 0:02:16.9]}
41... g3 {[%clk 0:00:45.8]} 42. Nxg3 {[%clk 0:02:17.8]} 42... Qxg3 {[%clk
0:00:46.5]} 43. Qxe7 {[%clk 0:02:19.3]} 43... Qe1# {[%clk 0:00:47]} 0-1

[Event "*** Titled Tuesday 3|2 Blitz"]
[Site "Chess.com"]
[Date "2016.05.03"]
[Round "1"]
[White "Tonychess32"]
[Black "DiamondCrusher22"]
[Result "1-0"]
[WhiteElo "2391"]
[BlackElo "1930"]
[TimeControl "180+2"]
[EndTime "17:06:34 PDT"]
[Termination "Tonychess32 won by resignation"]

1. e4 {[%clk 0:02:59.6]} 1... e5 {[%clk 0:03:00.7]} 2. Nf3 {[%clk 0:03:00.4]}
2... Nc6 {[%clk 0:03:01.7]} 3. Bc4 {[%clk 0:03:01.3]} 3... Nf6 {[%clk
0:03:02.3]} 4. d3 {[%clk 0:03:02.6]} 4... Bc5 {[%clk 0:03:02.6]} 5. Bb3 {[%clk
0:03:03.9]} 5... O-O {[%clk 0:03:01]} 6. O-O {[%clk 0:03:04.2]} 6... h6 {[%clk
0:03:00]} 7. c3 {[%clk 0:03:05.3]} 7... d5 {[%clk 0:02:59.6]} 8. Nbd2 {[%clk
0:03:03.3]} 8... Bg4 {[%clk 0:02:42.4]} 9. h3 {[%clk 0:02:57.1]} 9... Bh5 {[%clk
0:02:38.1]} 10. exd5 {[%clk 0:02:55.6]} 10... Nxd5 {[%clk 0:02:34.1]} 11. Ne4
{[%clk 0:02:56.8]} 11... Be7 {[%clk 0:02:18.1]} 12. Ng3 {[%clk 0:02:57.7]} 12...
Bg6 {[%clk 0:02:16.3]} 13. Re1 {[%clk 0:02:59.1]} 13... Bf6 {[%clk 0:02:14.3]}
14. Ne4 {[%clk 0:02:58]} 14... Re8 {[%clk 0:02:01.6]} 15. Bxd5 {[%clk
0:02:52.3]} 15... Qxd5 {[%clk 0:02:00.6]} 16. Nxf6+ {[%clk 0:02:53.6]} 16...
gxf6 {[%clk 0:02:01.6]} 17. Bxh6 {[%clk 0:02:53.4]} 17... Qxd3 {[%clk
0:02:00.7]} 18. Qb3 {[%clk 0:02:51.4]} 18... Na5 {[%clk 0:01:43.5]} 19. Qa4
{[%clk 0:02:47.3]} 19... Nc4 {[%clk 0:01:24.9]} 20. b3 {[%clk 0:02:48]} 20...
Nb6 {[%clk 0:01:11.2]} 21. Qh4 {[%clk 0:02:45.8]} 21... Qf5 {[%clk 0:01:06.4]}
22. Be3 {[%clk 0:02:41.2]} 22... Nd5 {[%clk 0:01:02.4]} 23. Bd2 {[%clk
0:02:42.3]} 23... Rad8 {[%clk 0:00:57.1]} 24. c4 {[%clk 0:02:34.1]} 24... Ne7
{[%clk 0:00:44.1]} 25. Be3 {[%clk 0:02:17.5]} 25... Qe6 {[%clk 0:00:36.9]} 26.
g4 {[%clk 0:02:18.6]} 26... Nc6 {[%clk 0:00:32.8]} 27. Qg3 {[%clk 0:02:12]}
27... e4 {[%clk 0:00:31.8]} 28. Nh4 {[%clk 0:02:10.6]} 28... Ne5 {[%clk
0:00:28.9]} 29. Rad1 {[%clk 0:02:06.9]} 29... Nd3 {[%clk 0:00:26.7]} 30. Rf1
{[%clk 0:02:06]} 30... Qe5 {[%clk 0:00:24.8]} 31. Ng2 {[%clk 0:02:07.1]} 31...
Qxg3 {[%clk 0:00:25.1]} 32. fxg3 {[%clk 0:02:09]} 32... Re6 {[%clk 0:00:23.8]}
33. Nf4 {[%clk 0:02:04.1]} 33... Red6 {[%clk 0:00:22.4]} 34. Nd5 {[%clk
0:02:03.5]} 34... Kg7 {[%clk 0:00:21.7]} 35. Nxc7 {[%clk 0:02:02]} 35... Ne5
{[%clk 0:00:19.9]} 36. Rxd6 {[%clk 0:02:00.3]} 36... Rxd6 {[%clk 0:00:21.8]} 37.
Ne8+ {[%clk 0:02:00.3]} 1-0

[Event "*** Titled Tuesday 3|2 Blitz"]
[Site "Chess.com"]
[Date "2016.05.03"]
[Round "1"]
[White "MinhGTrAn"]
[Black "StellarChessPro"]
[Result "1-0"]
[WhiteElo "2620"]
[BlackElo "2264"]
[TimeControl "180+2"]
[EndTime "17:06:49 PDT"]
[Termination "MinhGTrAn won by resignation"]

1. d4 {[%clk 0:03:01.9]} 1... d5 {[%clk 0:03:00.2]} 2. c4 {[%clk 0:03:03]} 2...
c6 {[%clk 0:03:00.7]} 3. Nc3 {[%clk 0:03:04.1]} 3... Nf6 {[%clk 0:03:01.9]} 4.
Nf3 {[%clk 0:03:03.4]} 4... e6 {[%clk 0:03:03.1]} 5. e3 {[%clk 0:03:03.7]} 5...
Nbd7 {[%clk 0:03:03.5]} 6. Be2 {[%clk 0:03:03.3]} 6... Bd6 {[%clk 0:03:04.6]} 7.
b3 {[%clk 0:03:03.6]} 7... Ne4 {[%clk 0:03:03.8]} 8. Nxe4 {[%clk 0:03:02.6]}
8... dxe4 {[%clk 0:03:05.7]} 9. Nd2 {[%clk 0:03:04.5]} 9... f5 {[%clk
0:03:06.4]} 10. Bb2 {[%clk 0:03:03.5]} 10... O-O {[%clk 0:03:06.9]} 11. Qc2
{[%clk 0:02:46.6]} 11... Qe7 {[%clk 0:03:04.9]} 12. a3 {[%clk 0:02:43.5]} 12...
a5 {[%clk 0:03:05]} 13. c5 {[%clk 0:02:41]} 13... Bc7 {[%clk 0:03:05.7]} 14. Nc4
{[%clk 0:02:30.1]} 14... e5 {[%clk 0:03:03.7]} 15. Nd6 {[%clk 0:02:25.9]} 15...
exd4 {[%clk 0:02:58.2]} 16. Bxd4 {[%clk 0:02:23]} 16... Nf6 {[%clk 0:02:54.3]}
17. Bc4+ {[%clk 0:02:17.4]} 17... Nd5 {[%clk 0:02:50.1]} 18. O-O {[%clk
0:02:13.8]} 18... Kh8 {[%clk 0:02:51.1]} 19. Rfd1 {[%clk 0:02:11.7]} 19... Rb8
{[%clk 0:02:50.2]} 20. Bxd5 {[%clk 0:02:08.3]} 20... cxd5 {[%clk 0:02:52.1]} 21.
Nb5 {[%clk 0:02:09.8]} 21... Be6 {[%clk 0:02:46.8]} 22. Nxc7 {[%clk 0:01:57.4]}
22... Qxc7 {[%clk 0:02:47.3]} 23. Qc3 {[%clk 0:01:56]} 23... Ra8 {[%clk
0:02:42]} 24. Be5 {[%clk 0:01:57.1]} 24... Qf7 {[%clk 0:02:41.5]} 25. b4 {[%clk
0:01:53]} 25... axb4 {[%clk 0:02:38.2]} 26. axb4 {[%clk 0:01:51.3]} 26... Rxa1
{[%clk 0:02:40.1]} 27. Rxa1 {[%clk 0:01:52.8]} 27... Kg8 {[%clk 0:02:42]} 28. h3
{[%clk 0:01:47.6]} 28... Bd7 {[%clk 0:02:20.3]} 29. Ra7 {[%clk 0:01:34.8]} 29...
Bb5 {[%clk 0:02:18.8]} 30. Bxg7 {[%clk 0:01:30.2]} 30... Rc8 {[%clk 0:01:46.8]}
31. Be5 {[%clk 0:01:28.8]} 31... Bc4 {[%clk 0:01:45.1]} 32. c6 {[%clk
0:01:21.8]} 32... d4 {[%clk 0:01:30.3]} 33. Qxd4 {[%clk 0:01:21.3]} 33... Ba6
{[%clk 0:01:23]} 34. cxb7 {[%clk 0:01:11.3]} 34... Bxb7 {[%clk 0:01:23.4]} 35.
Qb6 {[%clk 0:01:12.9]} 35... Qe7 {[%clk 0:01:11.9]} 36. Qxb7 {[%clk 0:01:12.4]}
36... Rc1+ {[%clk 0:01:12.7]} 37. Kh2 {[%clk 0:01:11.7]} 37... Qxe5+ {[%clk
0:01:13.6]} 38. g3 {[%clk 0:01:12.6]} 1-0